bitfinex/quotes_BTCUSD_20241018
["timestamp","ask_amount","ask_price","bid_price","bid_amount"]
[1729266337182,0.21850759,68759.0,68750.0,0.0797]
[1729266337183,10.02219537,68760.0,68757.0,0.04274819]
[1729266337405,0.21850759,68759.0,68758.0,0.21308143]
[1729266337676,10.02219537,68760.0,68758.0,0.21308143]
[1729266337677,10.02219537,68760.0,68759.0,0.00217892]
[1729266337888,10.02219537,68760.0,68759.0,1.09174032]
[1729266338664,10.02219537,68760.0,68759.0,1.24069947]
[1729266338906,10.02219537,68760.0,68759.0,1.66759947]
[1729266339108,9.99544284,68760.0,68759.0,6.71791947]
[1729266339820,9.77884284,68760.0,68759.0,6.84253943]
[1729266340140,9.50074284,68760.0,68759.0,6.84253943]
[1729266340367,9.48404284,68760.0,68759.0,6.84253943]
[1729266340560,9.47034284,68760.0,68759.0,6.84453943]
[1729266340755,9.45364284,68760.0,68759.0,6.84353943]
[1729266341019,9.45364284,68760.0,68759.0,6.84453943]
[1729266341450,9.43364284,68760.0,68759.0,6.84453943]
[1729266341748,9.41083983,68760.0,68759.0,6.84453943]
[1729266341952,9.39118598,68760.0,68759.0,6.84453943]
[1729266342164,9.39118598,68760.0,68759.0,6.53068043]
[1729266342165,9.3684535,68760.0,68759.0,6.53068043]
[1729266342398,9.3684535,68760.0,68759.0,6.96698043]
[1729266342865,9.3684535,68760.0,68759.0,6.9926847]
[1729266343075,9.3684535,68760.0,68759.0,6.96598043]
[1729266344194,9.3684535,68760.0,68759.0,6.96498043]
[1729266344417,9.3684535,68760.0,68759.0,2.31395228]
[1729266344638,9.3684535,68760.0,68759.0,5.47891943]
[1729266344881,9.3684535,68760.0,68759.0,5.56434631]
[1729266345315,9.3684535,68760.0,68759.0,5.47891943]
[1729266345548,9.3684535,68760.0,68759.0,5.33127343]
[1729266346202,9.3684535,68760.0,68759.0,5.06625343]
[1729266346450,9.3684535,68760.0,68759.0,3.78441298]
[1729266346662,9.3684535,68760.0,68759.0,1.81206028]
[1729266350697,9.3684535,68760.0,68759.0,0.44163692]
[1729266351137,9.3684535,68760.0,68759.0,1.53126552]
[1729266351999,9.3684535,68760.0,68759.0,1.57400935]
[1729266352241,9.3684535,68760.0,68759.0,1.53126552]
[1729266352463,9.3684535,68760.0,68759.0,1.59538127]
[1729266352720,9.3684535,68760.0,68759.0,1.53126552]
[1729266352984,9.51741265,68760.0,68759.0,0.44163692]
[1729266353206,9.4489535,68760.0,68759.0,0.44163692]
[1729266353433,9.3684535,68760.0,68759.0,0.44163692]
[1729266359437,9.3684535,68760.0,68759.0,1.63709756]
[1729266359687,9.3684535,68760.0,68759.0,1.55156494]
[1729266361241,9.3684535,68760.0,68759.0,1.70052409]
[1729266361694,9.3684535,68760.0,68759.0,1.55156494]
[1729266362153,9.3684535,68760.0,68759.0,1.59547466]
[1729266362615,9.35545314,68760.0,68759.0,1.53125982]
[1729266363475,9.35545314,68760.0,68759.0,1.61687118]
[1729266364131,9.35545314,68760.0,68759.0,1.59549966]
[1729266364400,9.35545314,68760.0,68759.0,0.44163692]
[1729266365299,9.34626968,68760.0,68759.0,1.53128762]
[1729266365508,9.34626968,68760.0,68759.0,1.59552746]
[1729266365688,9.34626968,68760.0,68759.0,1.53128762]
[1729266365981,9.34626968,68760.0,68759.0,1.63829187]
[1729266366189,9.34626968,68760.0,68759.0,1.70227007]
[1729266366638,9.34626968,68760.0,68759.0,4.98524018]
[1729266366887,9.35298205,68760.0,68759.0,6.75459007]
[1729266367116,9.35298205,68760.0,68759.0,6.78029318]
[1729266367333,9.27129606,68760.0,68759.0,6.78029318]
[1729266367560,9.27129606,68760.0,68759.0,7.24579723]
[1729266367786,9.27129606,68760.0,68759.0,7.05629318]
[1729266368021,9.27129606,68760.0,68759.0,7.05529318]
[1729266368022,9.25469606,68760.0,68759.0,7.05529318]
[1729266368290,9.25469606,68760.0,68759.0,4.08473618]
[1729266368523,8.40156138,68760.0,68759.0,4.05903307]
[1729266369378,8.40156138,68760.0,68759.0,4.18735176]
[1729266369811,8.38045275,68760.0,68759.0,4.05903307]
[1729266370262,8.38045275,68760.0,68759.0,3.86343307]
[1729266370476,8.38045275,68760.0,68759.0,3.86243307]
[1729266370695,8.38045275,68760.0,68759.0,1.78467007]
[1729266371542,8.38045275,68760.0,68759.0,6.77502507]
[1729266371760,8.38045275,68760.0,68759.0,6.83499007]
[1729266371969,8.38045275,68760.0,68759.0,6.86052406]
[1729266372228,8.38045275,68760.0,68759.0,5.28353707]
[1729266372438,8.3585644,68760.0,68759.0,5.28353707]
[1729266373302,8.3585644,68760.0,68759.0,3.17737407]
[1729266373735,8.3585644,68760.0,68759.0,3.15535077]
[1729266373953,8.3585644,68760.0,68759.0,3.28367327]
[1729266374179,8.3535644,68760.0,68759.0,3.15535077]
[1729266374404,8.3535644,68760.0,68759.0,3.17649167]
[1729266374832,8.3325644,68760.0,68759.0,3.25639167]
[1729266376630,8.3325644,68760.0,68759.0,3.31448367]
[1729266377094,8.3325644,68760.0,68759.0,3.44308111]
[1729266377304,8.3325644,68760.0,68759.0,3.44108111]
[1729266377517,8.3325644,68760.0,68759.0,3.44308111]
[1729266377743,8.3325644,68760.0,68759.0,3.31448367]
[1729266378197,8.3325644,68760.0,68759.0,3.23458367]
[1729266378462,8.3325644,68760.0,68759.0,3.42424216]
[1729266378704,8.3325644,68760.0,68759.0,3.23458367]
[1729266379781,8.3325644,68760.0,68759.0,3.23941505]
[1729266380214,8.3325644,68760.0,68759.0,2.59894405]
[1729266382839,8.3159644,68760.0,68759.0,2.59894405]
[1729266383054,8.3134444,68760.0,68759.0,2.59894405]
[1729266383258,8.31102871,68760.0,68759.0,2.59411267]
[1729266383513,8.29432871,68760.0,68759.0,2.59411267]
[1729266383740,8.27762871,68760.0,68759.0,2.59411267]
[1729266383949,8.27762871,68760.0,68759.0,2.74609528]
[1729266384162,8.06092871,68760.0,68759.0,2.78819528]
[1729266384393,8.04581375,68760.0,68759.0,2.78819528]
[1729266384846,8.03441375,68760.0,68759.0,2.79963946]
[1729266385056,7.91421375,68760.0,68759.0,2.79963946]
[1729266385276,7.16229149,68760.0,68759.0,2.72003946]
[1729266385491,6.70929132,68760.0,68759.0,2.72003946]
[1729266385713,6.67570086,68760.0,68759.0,2.72003946]
[1729266385930,6.22270069,68760.0,68759.0,2.69889856]
[1729266386146,5.76751453,68760.0,68759.0,6.91658556]
[1729266386367,5.30091436,68760.0,68759.0,6.91658556]
[1729266386836,4.88036236,68760.0,68759.0,6.84420295]
[1729266387288,4.86106236,68760.0,68759.0,6.84420295]
[1729266387549,4.84729965,68760.0,68759.0,6.84420295]
[1729266387770,4.81709965,68760.0,68759.0,6.84420295]
[1729266387993,4.78669965,68760.0,68759.0,6.84420295]
[1729266388434,4.75889965,68760.0,68759.0,6.84420295]
[1729266388674,4.74219965,68760.0,68759.0,6.86974774]
[1729266389102,4.72359965,68760.0,68759.0,6.82764774]
[1729266389551,4.68439965,68760.0,68759.0,6.82764774]
[1729266389995,4.66769965,68760.0,68759.0,6.82764774]
[1729266390418,4.63439965,68760.0,68759.0,6.82764774]
[1729266391505,4.63439965,68760.0,68759.0,6.81620356]
[1729266392374,4.61779965,68760.0,68759.0,6.81620356]
[1729266392595,4.59709965,68760.0,68759.0,6.81620356]
[1729266393245,4.58039965,68760.0,68759.0,6.81620356]
[1729266393462,4.55507445,68760.0,68759.0,6.81620356]
[1729266393911,4.52647445,68760.0,68759.0,6.81620356]
[1729266394335,4.49317445,68760.0,68759.0,6.81620356]
[1729266394546,4.47957445,68760.0,68759.0,6.81620356]
[1729266394984,4.38120617,68760.0,68759.0,7.03345201]
[1729266395253,4.38120617,68760.0,68759.0,6.88858617]
[1729266395254,4.34539089,68760.0,68759.0,6.88858617]
[1729266395468,4.31519089,68760.0,68759.0,6.88858617]
[1729266395691,4.3109716,68760.0,68759.0,7.03345201]
[1729266395903,4.2779716,68760.0,68759.0,6.88858617]
[1729266396137,4.27266554,68760.0,68759.0,7.03345201]
[1729266396383,4.25596554,68760.0,68759.0,6.88858617]
[1729266396817,4.23726554,68760.0,68759.0,6.88858617]
[1729266397041,4.23726554,68760.0,68759.0,1.83826617]
[1729266397271,4.23726554,68760.0,68759.0,1.81272138]
[1729266397272,4.20706554,68760.0,68759.0,1.81272138]
[1729266397510,4.19226554,68760.0,68759.0,1.81272138]
[1729266397779,4.17746554,68760.0,68759.0,6.86304138]
[1729266398014,4.17494554,68760.0,68759.0,6.88858617]
[1729266398490,4.15824554,68760.0,68759.0,6.88858617]
[1729266398711,4.12784554,68760.0,68759.0,6.88858617]
[1729266398933,4.09744554,68760.0,68759.0,6.88858617]
[1729266399188,4.07994049,68760.0,68759.0,6.88858617]
[1729266399414,4.06794049,68760.0,68759.0,6.88858617]
[1729266399663,4.12063544,68760.0,68759.0,1.76388356]
[1729266399897,4.12063544,68760.0,68759.0,2.15311685]
[1729266400136,4.12063544,68760.0,68759.0,1.81867977]
[1729266400370,4.12063544,68760.0,68759.0,1.68024677]
[1729266401053,4.12063544,68760.0,68759.0,1.53128762]
[1729266401292,4.12063544,68760.0,68759.0,2.07430777]
[1729266401524,4.12063544,68760.0,68759.0,2.13240777]
[1729266402419,4.12063544,68760.0,68759.0,2.13368731]
[1729266403387,4.12063544,68760.0,68759.0,2.13168731]
[1729266403839,4.12063544,68760.0,68759.0,2.06051731]
[1729266404060,4.12063544,68760.0,68759.0,1.92770225]
[1729266404323,4.12063544,68760.0,68759.0,1.86960225]
[1729266404573,4.12063544,68760.0,68759.0,1.67952631]
[1729266405289,4.12063544,68760.0,68759.0,1.53056716]
[1729266405547,4.31073544,68760.0,68759.0,0.16281646]
[1729266406720,4.31073544,68760.0,68753.0,0.02273423]
[1729266406721,0.0789,68758.0,68753.0,0.02273423]
[1729266406945,0.0789,68758.0,68757.0,1.0896875]
[1729266407113,0.0789,68758.0,68757.0,1.5260075]
[1729266407725,0.2623,68758.0,68757.0,0.34370034]
[1729266407972,0.2623,68758.0,68757.0,0.23632]
[1729266408419,0.2623,68758.0,68757.0,0.16930834]
[1729266408626,0.0769,68757.0,68756.0,0.06442911]
[1729266409086,0.0769,68757.0,68753.0,0.11030475]
[1729266409374,0.0769,68757.0,68755.0,0.06441927]
[1729266409847,0.0769,68757.0,68754.0,0.06441927]
[1729266410061,0.0769,68757.0,68756.0,0.06441927]
[1729266410274,0.0769,68757.0,68753.0,0.11030475]
[1729266410497,0.0769,68757.0,68755.0,0.08591252]
[1729266410752,0.0769,68757.0,68754.0,0.08591252]
[1729266411448,0.0769,68757.0,68755.0,0.08579514]
[1729266411672,0.0769,68757.0,68753.0,0.02439223]
[1729266411673,0.0769,68757.0,68754.0,0.08579514]
[1729266412355,0.0769,68757.0,68755.0,0.14895915]
[1729266412581,0.21850759,68759.0,68756.0,0.08579514]
[1729266412792,0.21850759,68759.0,68757.0,0.08576248]
[1729266413235,4.04003544,68760.0,68757.0,0.08576248]
[1729266413447,4.04003544,68760.0,68758.0,0.14895915]
[1729266413645,4.04003544,68760.0,68759.0,0.08576248]
[1729266413868,4.04003544,68760.0,68759.0,0.23472163]
[1729266414076,4.04003544,68760.0,68759.0,0.1511379]
[1729266414285,4.04003544,68760.0,68759.0,0.1531379]
[1729266414781,4.04003544,68760.0,68759.0,0.1511379]
[1729266415837,4.03218536,68760.0,68759.0,0.1511379]
[1729266416512,4.03218536,68760.0,68759.0,0.00217875]
[1729266416728,4.11428536,68760.0,68759.0,0.00217875]
[1729266417444,4.11428536,68760.0,68759.0,0.10935394]
[1729266417665,4.11428536,68760.0,68759.0,1.09180355]
[1729266418535,4.11428536,68760.0,68759.0,0.00217875]
[1729266419207,4.11428536,68760.0,68759.0,0.109328]
[1729266419653,4.11428536,68760.0,68758.0,0.08572771]
[1729266420778,4.11428536,68760.0,68759.0,0.06429668]
[1729266421009,4.11428536,68760.0,68758.0,0.06430626]
[1729266421222,4.11428536,68760.0,68759.0,0.06430626]
[1729266421451,4.11428536,68760.0,68756.0,0.08572771]
[1729266421452,4.11428536,68760.0,68758.0,0.04287711]
[1729266421670,4.11428536,68760.0,68757.0,0.04287711]
[1729266422147,0.0807,68757.0,68753.0,0.02439223]
[1729266422360,0.0807,68757.0,68736.0,0.12869271]
[1729266422361,0.1976,68755.0,68749.0,0.04287711]
[1729266422574,0.1976,68755.0,68746.0,0.04287711]
[1729266422575,0.0807,68753.0,68746.0,0.04287711]
[1729266422799,0.14895915,68752.0,68749.0,0.02274346]
[1729266423010,0.49680759,68751.0,68749.0,0.02274346]
[1729266423216,0.14895915,68750.0,68741.0,0.04287711]
[1729266423430,0.0807,68749.0,68737.0,0.02274595]
[1729266423667,0.0807,68747.0,68737.0,0.02274595]
[1729266423909,0.0807,68745.0,68737.0,0.02274595]
[1729266424125,0.0807,68743.0,68737.0,0.02274595]
[1729266424384,0.21850759,68752.0,68731.0,0.04290459]
[1729266424385,0.0807,68739.0,68731.0,0.04290459]
[1729266424643,0.14895915,68742.0,68719.0,0.04290459]
[1729266424644,0.0807,68734.0,68719.0,0.04290459]
[1729266424853,0.21850759,68752.0,68715.0,0.04290459]
[1729266424854,0.075,68732.0,68715.0,0.04290459]
[1729266425065,0.075,68728.0,68714.0,0.04290459]
[1729266425283,0.01401518,68722.0,68712.0,0.042905]
[1729266425518,0.33345915,68721.0,68706.0,0.002]
[1729266426007,0.21850759,68719.0,68706.0,0.002]
[1729266426217,0.14895915,68718.0,68711.0,0.002]
[1729266426428,0.1845,68721.0,68717.0,0.002]
[1729266426662,0.21850759,68720.0,68712.0,0.002]
[1729266426880,0.1845,68721.0,68712.0,0.002]
[1729266427095,0.21850759,68720.0,68713.0,0.14895915]
[1729266427328,0.21850759,68720.0,68713.0,1.23920505]
[1729266427548,0.21850759,68729.0,68713.0,1.23920505]
[1729266427756,0.21850759,68722.0,68719.0,0.00218036]
[1729266427972,0.21850759,68729.0,68719.0,0.00218036]
[1729266427973,0.21850759,68729.0,68728.0,0.002]
[1729266428844,0.1948,68733.0,68731.0,0.002]
[1729266429771,0.1948,68733.0,68720.0,0.14895915]
[1729266429772,0.1948,68733.0,68732.0,0.002]
[1729266429992,0.1948,68733.0,68723.0,0.002]
[1729266430411,0.1948,68733.0,68726.0,0.002]
[1729266431079,0.1948,68733.0,68725.0,0.002]
[1729266431498,0.1948,68733.0,68726.0,0.002]
[1729266431720,0.21850759,68731.0,68719.0,0.00418036]
[1729266432149,0.14895915,68730.0,68719.0,0.00218036]
[1729266432362,0.14895915,68730.0,68729.0,0.21636]
[1729266432805,0.1077,68729.0,68719.0,0.00218036]
[1729266433034,0.14895915,68728.0,68719.0,0.00218036]
[1729266433273,0.21850759,68726.0,68719.0,0.00218036]
[1729266433520,0.21850759,68726.0,68706.0,0.003658]
[1729266433521,0.14895915,68725.0,68706.0,0.003658]
[1729266433764,0.36746674,68725.0,68706.0,0.003658]
[1729266434455,0.21850759,68718.0,68706.0,0.001658]
[1729266434681,0.14895915,68717.0,68706.0,0.001658]
[1729266435134,0.14895915,68717.0,68707.0,0.002]
[1729266435365,0.21850759,68716.0,68706.0,0.003658]
[1729266435593,0.22685915,68715.0,68706.0,0.001658]
[1729266435822,0.1891,68714.0,68706.0,0.001658]
[1729266436073,0.14895915,68713.0,68706.0,0.001658]
[1729266436970,0.21850759,68712.0,68706.0,0.001658]
[1729266437222,0.14895915,68711.0,68706.0,0.001658]
[1729266437431,0.0913,68706.0,68698.0,0.001658]
[1729266437713,0.14895915,68705.0,68698.0,0.001658]
[1729266438841,0.21850759,68704.0,68698.0,0.001658]
[1729266439067,0.14895915,68703.0,68698.0,0.001658]
[1729266439306,0.0792,68698.0,68686.0,0.001658]
[1729266439537,0.14895915,68697.0,68678.0,0.005817]
[1729266439745,0.36746674,68697.0,68678.0,0.005817]
[1729266440009,0.36746674,68697.0,68674.0,0.0021001]
[1729266440949,0.36746674,68697.0,68681.0,0.002]
[1729266441195,0.36746674,68697.0,68691.0,0.002]
[1729266441371,0.36746674,68697.0,68688.0,0.002]
[1729266442054,0.14895915,68697.0,68686.0,0.00218212]
[1729266442266,0.21850759,68696.0,68686.0,0.00218212]
[1729266442503,0.14895915,68695.0,68686.0,0.00218212]
[1729266442710,0.14895915,68695.0,68680.0,2.29918212]
[1729266444006,0.21850759,68689.0,68680.0,2.29918212]
[1729266444225,0.21850759,68689.0,68683.0,0.00166]
[1729266444889,0.14895915,68695.0,68683.0,0.00166]
[1729266445379,0.14895915,68695.0,68680.0,2.29584212]
[1729266446022,0.21850759,68696.0,68680.0,2.29584212]
[1729266446241,0.21850759,68689.0,68680.0,2.29584212]
[1729266446468,0.21850759,68696.0,68680.0,2.29584212]
[1729266446912,0.21850759,68689.0,68680.0,2.29584212]
[1729266450505,0.21850759,68696.0,68680.0,2.29584212]
[1729266450751,0.21850759,68689.0,68680.0,2.29584212]
[1729266451404,0.21850759,68696.0,68680.0,2.29584212]
[1729266451641,0.14895915,68688.0,68680.0,2.29584212]
[1729266451849,0.36746674,68695.0,68680.0,2.29584212]
[1729266452060,0.21850759,68688.0,68680.0,2.29584212]
[1729266452281,0.36746674,68695.0,68686.0,0.00218136]
[1729266452496,0.21850759,68688.0,68686.0,0.00218136]
[1729266452727,0.36746674,68695.0,68686.0,0.00218136]
[1729266454872,0.14895915,68695.0,68686.0,0.00218136]
[1729266455109,0.21850759,68694.0,68686.0,0.00218136]
[1729266455415,0.21850759,68701.0,68686.0,0.00218136]
[1729266455636,0.14895915,68700.0,68686.0,0.00218136]
[1729266455850,0.21850759,68701.0,68686.0,0.00218136]
[1729266456083,0.21850759,68700.0,68686.0,0.00218136]
[1729266456569,0.21850759,68693.0,68686.0,0.00218136]
[1729266456829,0.00083,68695.0,68686.0,0.00218136]
[1729266457281,0.21850759,68693.0,68686.0,0.00218136]
[1729266457497,0.36746674,68700.0,68686.0,0.00218136]
[1729266457927,0.21850759,68693.0,68686.0,0.00218136]
[1729266458138,0.36746674,68700.0,68686.0,0.00218136]
[1729266458820,0.00083,68706.0,68686.0,0.00218136]
[1729266459063,0.21850759,68701.0,68686.0,0.00218136]
[1729266459302,0.21850759,68700.0,68688.0,0.1971]
[1729266459532,0.21850759,68700.0,68689.0,0.14895915]
[1729266460245,0.21850759,68699.0,68690.0,0.0785]
[1729266460502,0.21850759,68699.0,68691.0,0.14895915]
[1729266463097,0.21850759,68700.0,68699.0,0.002]
[1729266463320,0.21850759,68707.0,68701.0,0.002]
[1729266463807,0.21850759,68714.0,68703.0,0.1994]
[1729266464057,0.21850759,68721.0,68704.0,0.14895915]
[1729266464297,0.21850759,68712.0,68707.0,0.0763]
[1729266464538,0.21850759,68720.0,68708.0,0.14895915]
[1729266464768,0.21850759,68720.0,68713.0,0.00218057]
[1729266465013,0.21850759,68720.0,68719.0,0.002]
[1729266465517,0.21850759,68728.0,68719.0,0.002]
[1729266465968,0.21850759,68728.0,68713.0,0.00218057]
[1729266465969,0.21850759,68728.0,68717.0,0.002]
[1729266466194,0.14895915,68727.0,68713.0,0.00218057]
[1729266466902,0.21850759,68726.0,68723.0,0.002]
[1729266467151,0.21850759,68735.0,68725.0,0.002]
[1729266467394,0.21850759,68735.0,68725.0,0.1919]
[1729266467617,0.21850759,68735.0,68734.0,0.002]
[1729266468098,0.0336,68754.0,68730.0,0.002]
[1729266468333,0.0336,68754.0,68731.0,0.00218035]
[1729266468569,0.21850759,68744.0,68740.0,0.002]
[1729266468790,0.21850759,68744.0,68731.0,0.1511395]
[1729266468791,0.21850759,68744.0,68743.0,0.002]
[1729266469029,0.21850759,68744.0,68741.0,0.0796]
[1729266469030,0.21850759,68759.0,68745.0,0.002]
[1729266469485,0.21850759,68759.0,68743.0,0.002]
[1729266469708,0.21850759,68759.0,68747.0,0.002]
[1729266469930,0.21850759,68759.0,68743.0,0.002]
[1729266470385,0.21850759,68745.0,68737.0,0.002]
[1729266470637,0.14895915,68751.0,68742.0,0.002]
[1729266470858,0.14895915,68751.0,68741.0,0.002]
[1729266471530,0.14395915,68751.0,68741.0,0.002]
[1729266471773,0.21850759,68759.0,68745.0,0.002]
[1729266472025,0.21850759,68759.0,68756.0,0.002]
[1729266472704,0.21850759,68759.0,68754.0,0.0827]
[1729266472705,0.21850759,68759.0,68755.0,0.002]
[1729266472937,0.0003,68761.0,68750.0,0.002]
[1729266473133,0.0003,68761.0,68755.0,0.002]
[1729266473598,0.21850759,68759.0,68755.0,0.002]
[1729266473826,0.21850759,68759.0,68753.0,0.002]
[1729266474057,0.21850759,68759.0,68746.0,0.0783]
[1729266474323,0.0003,68761.0,68746.0,0.0783]
[1729266474506,0.21850759,68759.0,68751.0,0.002]
[1729266474941,0.14895915,68756.0,68746.0,0.0783]
[1729266475177,0.14895915,68756.0,68744.0,0.002]
[1729266475682,0.14895915,68756.0,68750.0,0.002]
[1729266475953,0.14895915,68756.0,68738.0,0.077]
[1729266475954,0.14895915,68756.0,68747.0,0.002]
[1729266476379,0.14895915,68756.0,68743.0,0.002]
[1729266476600,0.14895915,68756.0,68747.0,0.002]
[1729266476828,0.14895915,68756.0,68744.0,0.002]
[1729266477965,0.14895915,68756.0,68747.0,0.002]
[1729266478458,0.21850759,68752.0,68746.0,0.002]
[1729266478675,0.14978815,68757.0,68744.0,0.002]
[1729266479116,0.14895915,68756.0,68744.0,0.002]
[1729266479332,0.21850759,68752.0,68744.0,0.002]
[1729266479558,0.14895915,68756.0,68738.0,0.077]
[1729266479559,0.14895915,68756.0,68743.0,0.002]
[1729266479823,0.000829,68757.0,68751.0,0.002]
[1729266480024,0.21850759,68752.0,68747.0,0.002]
[1729266480239,0.000829,68757.0,68747.0,0.002]
[1729266480459,0.14978815,68756.0,68743.0,0.002]
[1729266481728,0.14978815,68756.0,68744.0,0.002]
[1729266481958,0.000829,68756.0,68744.0,0.002]
[1729266482609,0.14895915,68755.0,68744.0,0.002]
[1729266482838,0.000829,68756.0,68744.0,0.002]
[1729266483302,0.21850759,68752.0,68744.0,0.002]
[1729266483537,0.21850759,68752.0,68743.0,0.002]
[1729266483790,0.21850759,68752.0,68741.0,0.002]
[1729266484012,0.21850759,68750.0,68738.0,0.077]
[1729266484242,0.14895915,68751.0,68738.0,0.077]
[1729266484475,0.21850759,68750.0,68738.0,0.077]
[1729266484905,0.21850759,68750.0,68747.0,0.002]
[1729266485110,0.21850759,68750.0,68741.0,0.002]
[1729266485549,0.14895915,68751.0,68741.0,0.002]
[1729266485759,0.000829,68756.0,68745.0,0.002]
[1729266486012,0.21850759,68751.0,68744.0,0.002]
[1729266486238,0.14895915,68755.0,68744.0,0.002]
[1729266487179,0.000829,68756.0,68744.0,0.002]
[1729266487390,0.000829,68756.0,68734.0,0.21850759]
[1729266487391,0.000829,68756.0,68753.0,0.002]
[1729266487829,0.000829,68756.0,68755.0,0.002]
[1729266489215,0.000829,68756.0,68755.0,0.41915915]
[1729266489444,0.21933659,68773.0,68759.0,0.002]
[1729266489445,4.01110394,68760.0,68759.0,0.002]
[1729266489873,4.01110394,68760.0,68759.0,1.0916088]
[1729266490090,4.08430394,68760.0,68759.0,1.0916088]
[1729266490763,4.08430394,68760.0,68759.0,0.002]
[1729266492344,4.08430394,68760.0,68759.0,0.00217931]
[1729266492775,4.23326309,68760.0,68759.0,0.00217931]
[1729266498672,4.08430394,68760.0,68759.0,0.00217931]
[1729266500959,4.08430394,68760.0,68759.0,0.00417931]
[1729266501174,4.08430394,68760.0,68759.0,0.00217931]
[1729266502751,4.23326309,68760.0,68759.0,0.00217931]
[1729266503517,4.26686309,68760.0,68759.0,0.00217931]
[1729266503768,4.19366309,68760.0,68731.0,0.0827]
[1729266503986,0.14895915,68759.0,68745.0,0.21850759]
[1729266504194,0.36746674,68759.0,68731.0,0.0847]
[1729266504430,0.36746674,68759.0,68731.0,0.0827]
[1729266504431,0.14895915,68753.0,68731.0,0.0827]
[1729266504660,0.14895915,68749.0,68727.0,0.1879]
[1729266504915,0.14895915,68748.0,68738.0,0.03681011]
[1729266505157,0.14895915,68748.0,68726.0,0.21850759]
[1729266505397,0.0732,68749.0,68726.0,0.21850759]
[1729266505398,0.14895915,68746.0,68726.0,0.21850759]
[1729266505630,0.21850759,68745.0,68726.0,0.21850759]
[1729266505857,0.36746674,68744.0,68726.0,0.21850759]
[1729266506096,0.36746674,68744.0,68725.0,0.0791]
[1729266506335,0.36746674,68744.0,68736.0,0.002]
[1729266506840,0.36746674,68744.0,68725.0,0.0791]
[1729266506841,0.0732,68749.0,68748.0,0.002]
[1729266507808,0.0732,68749.0,68746.0,0.002]
[1729266508701,0.0732,68749.0,68743.0,0.04270874]
[1729266508914,0.0732,68749.0,68748.0,0.002]
[1729266509336,0.0732,68749.0,68744.0,0.04470874]
[1729266509565,0.0732,68749.0,68744.0,0.04270874]
[1729266509800,0.0732,68749.0,68746.0,0.04270874]
[1729266510265,0.14895915,68748.0,68747.0,0.04270874]
[1729266510506,0.14895915,68748.0,68745.0,0.04270874]
[1729266510723,0.14895915,68748.0,68740.0,0.04270874]
[1729266510956,0.14895915,68748.0,68738.0,0.04270874]
[1729266511390,0.14895915,68748.0,68739.0,0.04270874]
[1729266511625,0.21850759,68747.0,68740.0,0.04304702]
[1729266511845,0.14895915,68746.0,68740.0,0.04304702]
[1729266512506,0.21850759,68745.0,68741.0,0.04304702]
[1729266512720,0.36746674,68744.0,68741.0,0.04304702]
[1729266512935,0.36746674,68744.0,68738.0,0.04304702]
[1729266512936,0.14895915,68744.0,68738.0,0.04304702]
[1729266513148,0.14895915,68744.0,68737.0,0.04304702]
[1729266513365,0.14895915,68744.0,68734.0,0.0001001]
[1729266513596,0.14895915,68744.0,68734.0,0.04314712]
[1729266514783,0.14895915,68744.0,68739.0,0.00217999]
[1729266515007,0.21850759,68743.0,68739.0,0.00217999]
[1729266515232,0.14895915,68742.0,68740.0,0.04304702]
[1729266515467,0.14895915,68742.0,68739.0,0.04523498]
[1729266515682,0.0732,68749.0,68741.0,0.04305499]
[1729266515908,0.14895915,68748.0,68745.0,0.002]
[1729266516115,0.14895915,68748.0,68742.0,0.002]
[1729266516609,0.14895915,68748.0,68742.0,0.04505499]
[1729266516815,0.14895915,68748.0,68745.0,0.04305499]
[1729266517075,0.0732,68749.0,68745.0,0.04305499]
[1729266517320,0.0732,68749.0,68747.0,0.04305499]
[1729266517321,0.21850759,68748.0,68747.0,0.04305499]
[1729266517529,0.14895915,68748.0,68746.0,0.06457053]
[1729266517743,0.14895915,68747.0,68745.0,0.06457053]
[1729266518003,0.14895915,68747.0,68744.0,0.04304318]
[1729266518226,0.14895915,68747.0,68741.0,0.04304318]
[1729266518703,0.14895915,68747.0,68742.0,0.04304318]
[1729266518913,0.14895915,68747.0,68743.0,0.04304318]
[1729266519166,0.14895915,68747.0,68741.0,0.06457053]
[1729266519167,0.14895915,68747.0,68740.0,0.04304318]
[1729266519425,0.14895915,68747.0,68742.0,0.04304318]
[1729266519656,0.21850759,68746.0,68742.0,0.04304318]
[1729266519867,0.14895915,68745.0,68742.0,0.04304318]
[1729266520086,0.14895915,68745.0,68741.0,0.04304318]
[1729266520326,0.14895915,68745.0,68740.0,0.04304318]
[1729266520535,0.14895915,68745.0,68740.0,0.04304824]
[1729266520766,0.14895915,68745.0,68739.0,0.00217999]
[1729266521439,0.21850759,68744.0,68739.0,0.00217999]
[1729266521682,0.14895915,68741.0,68739.0,0.00217999]
[1729266522800,0.14895915,68740.0,68739.0,0.00217999]
[1729266528682,0.14895915,68740.0,68739.0,0.00383799]
[1729266532114,0.18255915,68740.0,68739.0,0.00383799]
[1729266532336,0.21133507,68740.0,68739.0,0.00383799]
[1729266532810,0.21133507,68740.0,68734.0,0.0001001]
[1729266533021,0.14895915,68735.0,68734.0,0.0001001]
[1729266533250,0.18255915,68735.0,68734.0,0.0001001]
[1729266533935,0.28385915,68735.0,68734.0,0.0001001]
[1729266534151,0.28385915,68735.0,68715.0,0.21850759]
[1729266534152,0.19769826,68735.0,68719.0,0.01]
[1729266534356,0.14895915,68720.0,68719.0,0.01]
[1729266536998,0.14895915,68720.0,68713.0,0.02275901]
[1729266537225,0.14895915,68714.0,68713.0,0.02275901]
[1729266540172,0.14895915,68714.0,68706.0,0.001658]
[1729266540415,0.14895915,68707.0,68706.0,0.001658]
[1729266542455,0.14895915,68707.0,68693.0,0.16700148]
[1729266542908,0.21850759,68706.0,68693.0,0.16700148]
[1729266543130,0.14895915,68705.0,68693.0,0.16700148]
[1729266543373,0.14895915,68705.0,68696.0,0.02276145]
[1729266543598,0.14895915,68704.0,68696.0,0.02276145]
[1729266545248,0.14895915,68704.0,68698.0,0.002]
[1729266545716,0.14895915,68704.0,68699.0,0.0769]
[1729266546236,0.14895915,68704.0,68700.0,0.002]
[1729266547168,0.14895915,68704.0,68701.0,0.002]
[1729266547619,0.21850759,68713.0,68703.0,0.1818]
[1729266547846,0.14895915,68712.0,68706.0,0.002]
[1729266548077,0.14895915,68712.0,68703.0,0.1818]
[1729266548078,0.14895915,68712.0,68704.0,0.002]
[1729266549025,0.14895915,68712.0,68703.0,0.1818]
[1729266551115,0.14895915,68712.0,68709.0,0.00218141]
[1729266551340,0.21850759,68720.0,68717.0,0.1954]
[1729266551567,0.21850759,68720.0,68719.0,0.01]